bitfinex-derivatives/quotes_SOLF0:USTF0_20240904
["timestamp","ask_amount","ask_price","bid_price","bid_amount"]
[1725419183255,24.14,127.23,127.19,0.05006197]
[1725419183459,0.04995535,127.21,127.19,0.05006197]
[1725419184055,32.05695535,127.21,127.19,0.05006197]
[1725419184258,3.9314,127.2,127.19,0.05006197]
[1725419184450,7.79508324,127.2,127.19,0.05006197]
[1725419187854,3.9324,127.17,127.14,1.441]
[1725419188568,3.9327,127.16,127.14,1.441]
[1725419188768,7.867,127.19,127.1,28.0743]
[1725419189072,0.04981437,127.16,127.13,0.05360756]
[1725419189558,3.98261437,127.16,127.13,0.05360756]
[1725419189764,0.04981437,127.16,127.13,0.05360756]
[1725419190767,0.04981437,127.16,127.13,3.98690756]
[1725419193272,0.04981437,127.16,127.13,0.05360756]
[1725419194265,3.9332,127.15,127.13,0.05360756]
[1725419194969,0.04981437,127.16,127.13,0.05360756]
[1725419199868,3.98261437,127.16,127.13,0.05360756]
[1725419200068,0.04981437,127.16,127.13,0.05360756]
[1725419201275,3.9329,127.15,127.13,0.05360756]
[1725419201577,0.04981437,127.16,127.13,0.05360756]
[1725419201874,3.98261437,127.16,127.13,0.05360756]
[1725419202074,0.04981437,127.16,127.13,0.05360756]
[1725419203272,3.9329,127.15,127.13,0.05360756]
[1725419203971,3.9332,127.14,127.13,0.05360756]
[1725419204675,0.04981437,127.16,127.13,0.05360756]
[1725419204875,3.9331,127.15,127.13,0.05360756]
[1725419207075,0.04981437,127.16,127.13,0.05360756]
[1725419208374,0.04981437,127.16,127.13,1.52340756]
[1725419208771,0.04981437,127.16,127.13,2.92770756]
[1725419209076,0.04981437,127.16,127.15,3.9329]
[1725419209977,3.9316,127.2,127.16,3.9325]
[1725419210172,11.87778492,127.21,127.14,24.14]
[1725419211074,0.05262286,127.19,127.16,0.05562244]
[1725419211273,0.05262286,127.19,127.16,3.98802244]
[1725419213083,0.05262286,127.19,127.17,3.9322]
[1725419220485,0.05262286,127.19,127.16,0.05562244]
[1725419220784,24.19262286,127.19,127.16,0.05562244]
[1725419221189,24.14,127.17,127.16,0.05562244]
[1725419221383,28.0723,127.17,127.16,0.05562244]
[1725419221584,28.0723,127.17,127.09,3.9345]
[1725419221585,24.14,127.17,127.09,3.9345]
[1725419221883,24.14,127.15,127.08,2.86]
[1725419222082,3.9335,127.13,127.08,2.86]
[1725419222285,7.89937637,127.13,127.08,2.86]
[1725419222484,0.05244983,127.12,127.09,0.05778729]
[1725419223687,0.05244983,127.12,127.09,3.99248729]
[1725419225186,0.05244983,127.12,127.1,3.9344]
[1725419225889,0.05244983,127.12,127.09,3.99238729]
[1725419228090,3.98644983,127.12,127.09,0.05778729]
[1725419228487,0.05244983,127.12,127.09,0.05778729]
[1725419228789,3.9342,127.11,127.09,0.05778729]
[1725419228990,0.05244983,127.12,127.09,0.05778729]
[1725419229585,3.98644983,127.12,127.09,0.05778729]
[1725419229982,0.05244983,127.12,127.09,0.05778729]
[1725419230985,0.05244983,127.12,127.09,3.99238729]
[1725419232385,0.05244983,127.12,127.09,24.19778729]
[1725419232593,7.867,127.16,127.11,24.14]
[1725419232892,32.007,127.19,127.13,3.9334]
[1725419233094,3.932,127.18,127.13,3.9334]
[1725419233293,32.007,127.19,127.13,3.9334]
[1725419233691,0.0589603,127.17,127.15,0.05704567]
[1725419234397,3.9912603,127.17,127.15,0.05704567]
[1725419235292,0.0589603,127.17,127.15,0.05704567]
[1725419235999,0.0589603,127.17,127.15,3.98974567]
[1725419236697,0.0589603,127.17,127.15,0.05704567]
[1725419237798,3.9326,127.16,127.15,0.05704567]
[1725419241099,0.0589603,127.17,127.15,0.05704567]
[1725419241994,0.0589603,127.17,127.15,24.19704567]
[1725419242191,7.867,127.23,127.16,24.14]
[1725419242711,3.85885488,127.22,127.18,3.9318]
[1725419242899,3.85885488,127.22,127.16,24.14]
[1725419243208,0.05153328,127.2,127.19,3.9315]
[1725419244499,0.05153328,127.2,127.18,3.98497028]
[1725419245208,0.05153328,127.2,127.18,0.05307028]
[1725419248711,0.05153328,127.2,127.19,3.9317]
[1725419249213,0.05153328,127.2,127.19,5.3655]
[1725419251108,3.86979491,127.23,127.19,1.4338]
[1725419251413,25.621,127.28,127.19,2.8]
[1725419251603,24.14,127.26,127.19,2.8]
[1725419251809,32.007,127.26,127.19,2.8]
[1725419252314,0.05463118,127.24,127.21,0.05489417]
[1725419252509,3.97681721,127.23,127.21,0.05489417]
[1725419256511,3.98483118,127.24,127.21,0.05489417]
[1725419257113,7.88625107,127.24,127.21,0.05489417]
[1725419257919,0.05463118,127.24,127.21,0.05489417]
[1725419258221,0.05463118,127.24,127.22,24.14]
[1725419258421,0.05463118,127.24,127.23,3.9304]
[1725419259723,0.05463118,127.24,127.23,28.0704]
[1725419260419,0.05463118,127.24,127.23,3.9304]
[1725419261819,0.05463118,127.24,127.21,0.05489417]
[1725419262119,0.05463118,127.24,127.21,3.98579417]
[1725419263121,3.89530444,127.24,127.21,0.05489417]
[1725419263620,3.9306,127.23,127.21,0.05489417]
[1725419264720,0.05463118,127.24,127.22,24.14]
[1725419265425,0.05463118,127.24,127.23,3.9304]
[1725419269832,0.05463118,127.24,127.21,24.19489417]
[1725419270230,0.05463118,127.24,127.22,3.9305]
[1725419270431,4.08277898,127.24,127.21,24.19489417]
[1725419270630,0.05463118,127.24,127.21,0.05489417]
[1725419270830,3.88862273,127.23,127.21,0.05489417]
[1725419272041,3.88862273,127.23,127.21,3.98579417]
[1725419274230,3.98473118,127.24,127.21,3.98579417]
[1725419274632,7.98993423,127.24,127.21,3.98579417]
[1725419274836,3.98473118,127.24,127.21,3.98579417]
[1725419275430,7.84565571,127.24,127.21,3.98579417]
[1725419276633,0.05463118,127.24,127.21,3.98579417]
[1725419277142,4.02091095,127.24,127.21,3.98579417]
[1725419277337,0.05463118,127.24,127.22,24.14]
[1725419278139,0.05463118,127.24,127.23,3.9304]
[1725419280438,9.2274,127.3,127.22,24.14]
[1725419280637,9.2274,127.3,127.25,24.14]
[1725419281033,7.867,127.3,127.25,24.14]
[1725419281235,3.94627249,127.31,127.26,24.14]
[1725419281439,7.867,127.34,127.28,24.14]
[1725419281645,0.05438092,127.32,127.3,3.98741849]
[1725419281842,0.05438092,127.32,127.3,0.05921849]
[1725419282254,3.928,127.31,127.3,0.05921849]
[1725419282955,3.98218092,127.32,127.3,0.05921849]
[1725419284244,0.05438092,127.32,127.3,3.98741849]
[1725419284442,0.05438092,127.32,127.3,0.05921849]
[1725419285856,0.05438092,127.32,127.3,3.98731849]
[1725419287760,0.05438092,127.32,127.3,0.05921849]
[1725419289363,3.98208092,127.32,127.3,0.05921849]
[1725419289866,0.05438092,127.32,127.3,0.05921849]
[1725419291450,3.928,127.31,127.3,0.05921849]
[1725419292257,3.928,127.31,127.22,3.005]
[1725419292258,24.14,127.31,127.22,3.005]
[1725419292562,1.4567,127.3,127.22,3.005]
[1725419293064,3.9293,127.27,127.22,6.9355]
[1725419293264,0.05636585,127.26,127.23,0.05011562]
[1725419294063,4.07043679,127.26,127.23,0.05011562]
[1725419296262,4.07043679,127.26,127.23,3.98051562]
[1725419296466,0.05636585,127.26,127.23,24.19011562]
[1725419297064,0.05636585,127.26,127.25,24.14]
[1725419297458,11.78540783,127.34,127.25,24.14]
[1725419297653,11.78540783,127.34,127.24,1.5036]
[1725419297654,11.78540783,127.34,127.27,24.14]
[1725419297860,3.9281,127.31,127.27,28.069]
[1725419298567,0.06027126,127.3,127.28,3.97853924]
[1725419298766,0.06027126,127.3,127.28,0.04963924]
[1725419299155,0.06027126,127.3,127.28,1.51053924]
[1725419299570,0.06027126,127.3,127.29,28.0686]
[1725419300263,3.91840783,127.34,127.31,3.9279]
[1725419300470,3.9269,127.35,127.31,3.9279]
[1725419300867,3.9271,127.34,127.31,3.9279]
[1725419301366,0.05495443,127.34,127.31,3.98066637]
[1725419301663,4.03359412,127.34,127.31,0.05276637]
[1725419301864,3.98215443,127.34,127.31,0.05276637]
[1725419302064,0.05495443,127.34,127.31,0.05276637]
[1725419302461,3.88312016,127.33,127.31,0.05276637]
[1725419313266,7.81062016,127.33,127.31,0.05276637]
[1725419314071,3.88312016,127.33,127.31,0.05276637]
[1725419316276,0.05495443,127.34,127.31,0.05276637]
[1725419316479,0.05495443,127.34,127.31,24.19276637]
[1725419316776,0.05495443,127.34,127.32,3.9274]
[1725419316977,0.05495443,127.34,127.31,24.19276637]
[1725419317377,0.05495443,127.34,127.33,3.9273]
[1725419317679,0.05495443,127.34,127.33,28.0673]
[1725419321275,2.8268,127.4,127.36,3.9263]
[1725419322281,2.8268,127.4,127.37,0.0599956]
[1725419322282,0.05757756,127.39,127.37,0.0599956]
[1725419322483,0.05757756,127.39,127.37,3.9860956]
[1725419324383,0.05757756,127.39,127.38,3.9258]
[1725419325180,0.05757756,127.39,127.38,28.0658]
[1725419328079,0.05757756,127.39,127.37,0.0599956]
[1725419328080,0.05757756,127.39,127.37,3.9858956]
[1725419328383,3.90293046,127.39,127.37,0.0599956]
[1725419328682,0.05757756,127.39,127.37,0.0599956]
[1725419329187,3.93629663,127.39,127.37,0.0599956]
[1725419330986,0.05757756,127.39,127.37,0.0599956]
[1725419331488,4.06889002,127.39,127.37,0.0599956]
[1725419331692,0.05757756,127.39,127.37,0.0599956]
[1725419334394,0.05757756,127.39,127.37,3.9859956]
[1725419336003,0.05757756,127.39,127.37,0.0599956]
[1725419336593,0.05757756,127.39,127.37,3.9859956]
[1725419336791,0.05757756,127.39,127.37,0.0599956]
[1725419336988,7.82403036,127.39,127.37,0.0599956]
[1725419337190,3.98317756,127.39,127.37,0.0599956]
[1725419337792,7.86565086,127.39,127.37,0.0599956]
[1725419337989,3.94005086,127.39,127.37,0.0599956]
[1725419338496,7.86565086,127.39,127.37,0.0599956]
[1725419338897,3.94005086,127.39,127.37,0.0599956]
[1725419339093,0.05757756,127.39,127.37,0.0599956]
[1725419339797,0.05757756,127.39,127.37,3.9859956]
[1725419340002,0.05757756,127.39,127.37,0.0599956]
[1725419340890,0.05757756,127.39,127.37,3.9858956]
[1725419341494,0.05757756,127.39,127.38,28.0658]
[1725419342293,3.87879948,127.46,127.41,3.9248]
[1725419342493,7.856,127.49,127.41,28.0648]
[1725419342698,7.856,127.49,127.41,24.14]
[1725419343096,11.71579405,127.49,127.42,3.9244]
[1725419343301,3.9233,127.46,127.44,0.05646826]
[1725419343596,0.05301632,127.47,127.44,0.05646826]
[1725419344002,3.9234,127.46,127.44,0.05646826]
[1725419344494,0.05301632,127.47,127.44,0.05646826]
[1725419345688,3.9236,127.45,127.44,0.05646826]
[1725419345891,24.14,127.46,127.34,2.8649]
[1725419346096,24.14,127.43,127.35,24.14]
[1725419346299,24.14,127.42,127.33,24.14]
[1725419346495,28.10375264,127.42,127.33,24.14]
[1725419346696,28.10375264,127.42,127.33,27.96796468]
[1725419346894,3.96375264,127.42,127.35,24.14]
[1725419347091,3.96375264,127.42,127.34,1.4247]
[1725419347092,0.05311898,127.4,127.37,0.05902648]
[1725419347296,3.9258,127.38,127.37,0.05902648]
[1725419351501,3.9269,127.35,127.32,24.14]
[1725419352404,3.98132806,127.35,127.32,24.19277629]
[1725419353214,0.05442806,127.35,127.32,24.19277629]
[1725419353809,4.07084976,127.35,127.32,24.19277629]
[1725419354307,7.99754976,127.35,127.32,24.19277629]
[1725419355308,3.98112806,127.35,127.32,24.19277629]
[1725419358309,3.9271,127.34,127.32,24.19277629]
[1725419358502,0.05442806,127.35,127.32,24.19277629]
[1725419359309,0.05442806,127.35,127.33,24.14]
[1725419359513,0.05442806,127.35,127.33,25.5217]
[1725419359720,0.05442806,127.35,127.33,29.449]
[1725419361017,11.70962861,127.42,127.33,29.53506631]
[1725419361218,11.70962861,127.42,127.35,24.14]
[1725419361514,3.9255,127.4,127.35,24.14]
[1725419362106,0.05180629,127.39,127.36,0.05223981]
[1725419364716,0.05180629,127.39,127.36,3.97853981]
[1725419364917,0.05180629,127.39,127.36,0.05223981]
[1725419365219,0.05180629,127.39,127.37,24.14]
[1725419365807,0.05180629,127.39,127.37,28.0659]
[1725419366007,0.05180629,127.39,127.37,24.14]
[1725419367318,0.05180629,127.39,127.37,28.0659]
[1725419368433,0.05180629,127.39,127.37,3.9259]
[1725419369628,0.05180629,127.39,127.38,3.9258]
[1725419375726,0.05180629,127.39,127.36,0.05223981]
[1725419376131,0.05180629,127.39,127.37,3.9261]
[1725419377540,0.05180629,127.39,127.36,3.97853981]
[1725419377742,0.05180629,127.39,127.36,0.05223981]
[1725419378138,0.05180629,127.39,127.37,3.9259]
[1725419380943,0.05180629,127.39,127.38,3.9258]
[1725419382347,0.05180629,127.39,127.37,24.14]
[1725419382740,0.05180629,127.39,127.38,3.9258]
[1725419383049,0.05180629,127.39,127.37,24.14]
[1725419383451,0.05180629,127.39,127.37,28.0659]
[1725419383850,0.05180629,127.39,127.37,24.14]
[1725419384146,0.05180629,127.39,127.38,3.9258]
[1725419386153,7.856,127.45,127.4,3.925]
[1725419386343,7.856,127.45,127.39,1.4033]
[1725419387259,0.05313976,127.43,127.41,0.05766884]
[1725419387553,3.9241,127.44,127.41,3.98256884]
[1725419387750,11.71579405,127.49,127.4,24.14]
[1725419387951,3.9235,127.46,127.42,3.9244]
[1725419388148,3.9235,127.46,127.41,24.14]
[1725419388652,0.05103026,127.45,127.42,0.05039483]
[1725419388849,0.05103026,127.45,127.43,3.9241]
[1725419389050,0.05103026,127.45,127.42,0.05039483]
[1725419390254,0.05103026,127.45,127.43,3.9243]
[1725419390455,0.05103026,127.45,127.42,0.05039483]
[1725419391757,0.05103026,127.45,127.43,3.9243]
[1725419391957,0.05103026,127.45,127.42,0.05039483]
[1725419394055,3.9241,127.44,127.42,0.05039483]
[1725419396554,0.05103026,127.45,127.43,3.9243]
[1725419396752,0.05103026,127.45,127.42,0.05039483]
[1725419397159,3.97473026,127.45,127.42,0.05039483]
[1725419397969,0.05103026,127.45,127.42,0.05039483]
[1725419398657,0.05103026,127.45,127.42,3.97479483]
[1725419401263,0.05103026,127.45,127.42,0.05039483]
[1725419402967,3.924,127.44,127.42,0.05039483]
[1725419403160,0.05103026,127.45,127.42,0.05039483]
[1725419403358,3.925,127.41,127.37,28.0659]
[1725419403664,7.82980105,127.41,127.37,3.9259]
[1725419404158,3.90480105,127.41,127.37,3.9259]
[1725419404359,0.05253086,127.4,127.38,3.98554308]
[1725419404554,0.05036791,127.4,127.38,3.98584115]
[1725419404753,0.05036791,127.4,127.38,0.06024115]
[1725419404955,0.05036791,127.4,127.39,3.9255]
[1725419406056,0.05036791,127.4,127.39,13.5655]
[1725419407563,17.496,127.47,127.42,3.9244]
[1725419407764,17.496,127.47,127.42,13.5644]
[1725419407960,3.9238,127.45,127.4,24.1]
[1725419408165,3.9238,127.45,127.41,3.9247]
[1725419408566,0.05326709,127.44,127.42,0.05543002]
[1725419409467,0.05326709,127.44,127.42,3.97983002]
[1725419410060,0.05326709,127.44,127.42,0.05543002]
[1725419411268,3.9243,127.43,127.42,0.05543002]
[1725419412269,0.05326709,127.44,127.35,2.8722]
[1725419412270,24.15326709,127.44,127.35,2.8722]
[1725419412461,2.988,127.43,127.35,5.3311]
[1725419413062,3.9253,127.4,127.35,5.3311]
[1725419413261,0.05907288,127.39,127.36,0.05615839]
[1725419415070,0.05907288,127.39,127.36,3.98245839]
[1725419415267,0.05907288,127.39,127.37,24.1]
[1725419416361,0.05907288,127.39,127.38,3.9258]
[1725419416866,7.856,127.46,127.37,24.1]
[1725419417065,7.856,127.46,127.39,24.1]
[1725419417470,3.9242,127.44,127.4,3.925]
[1725419418069,0.05924396,127.43,127.41,24.15434261]
[1725419418967,3.9246,127.42,127.41,0.05434261]
[1725419419168,0.05924396,127.43,127.41,0.05434261]
[1725419419369,3.98354396,127.43,127.41,0.05434261]
[1725419420275,0.05924396,127.43,127.41,24.15434261]
[1725419420775,0.05924396,127.43,127.42,3.9246]
[1725419421973,0.05924396,127.43,127.41,28.07904261]
[1725419422977,0.05924396,127.43,127.41,24.15434261]
[1725419425377,0.05924396,127.43,127.41,28.07924261]
[1725419425981,0.05924396,127.43,127.42,31.91417945]
[1725419426182,0.05924396,127.43,127.42,33.28357945]
[1725419427888,3.923,127.47,127.42,29.35897945]
[1725419428575,3.923,127.47,127.42,24.1]
[1725419428783,24.1,127.5,127.41,24.1]
[1725419428988,0.05402278,127.47,127.44,0.05605645]
[1725419430379,3.9235,127.46,127.44,0.05605645]
[1725419430577,0.05402278,127.47,127.44,0.05605645]
[1725419431979,0.05402278,127.47,127.44,1.56025645]
[1725419432485,0.05402278,127.47,127.45,3.9236]
[1725419432885,0.05402278,127.47,127.46,3.9233]
[1725419434192,0.05402278,127.47,127.44,0.05605645]
[1725419435489,3.97702278,127.47,127.44,3.97985645]
[1725419436584,0.05402278,127.47,127.45,3.9236]
[1725419437697,0.05402278,127.47,127.46,3.9233]
[1725419437895,10.92222128,127.56,127.46,3.9233]
[1725419437896,7.856,127.55,127.46,24.1]
[1725419438188,3.9217,127.52,127.49,3.9224]
[1725419438493,7.91048826,127.52,127.49,3.9224]
[1725419438689,3.9217,127.52,127.49,3.9224]
[1725419438893,3.9775099,127.52,127.49,3.97686515]
[1725419439094,3.9775099,127.52,127.49,0.05446515]
[1725419439095,7.88823277,127.52,127.49,0.05446515]
[1725419439691,0.0558099,127.52,127.49,0.05446515]
[1725419440192,0.0558099,127.52,127.51,3.9218]
[1725419442292,7.856,127.58,127.51,3.9215]
[1725419442488,11.85538045,127.58,127.5,29.35042887]
[1725419443389,0.05919648,127.55,127.53,0.05122012]
[1725419448200,0.05919648,127.55,127.53,3.97242012]
[1725419449093,0.05919648,127.55,127.54,3.9209]
[1725419449895,0.05919648,127.55,127.53,3.97232012]
[1725419451490,0.05919648,127.55,127.54,3.9209]
[1725419451693,0.05919648,127.55,127.53,0.05122012]
[1725419452396,0.05919648,127.55,127.53,3.97222012]
[1725419452894,3.91955453,127.57,127.53,3.97222012]
[1725419453099,3.9198,127.58,127.54,3.9208]
[1725419453401,3.92944033,127.59,127.54,3.9208]
[1725419453604,31.956,127.61,127.54,3.9208]
[1725419453896,1.44151723,127.6,127.54,3.9208]
[1725419454101,0.03340524,127.59,127.56,0.04976191]
[1725419454303,1.47492281,127.59,127.56,0.04976191]
[1725419454505,3.92,127.57,127.56,0.04976191]
[1725419456301,30.88407037,127.58,127.48,24.1]
[1725419456502,24.1,127.56,127.48,24.1]
[1725419456694,3.9214,127.53,127.48,28.0225]
[1725419456890,3.9214,127.53,127.48,24.1]
[1725419457302,0.0547093,127.52,127.49,0.05458341]
[1725419457700,0.0547093,127.52,127.49,3.97698341]
[1725419457901,0.0547093,127.52,127.49,0.05458341]
[1725419458501,3.94956056,127.52,127.49,0.05458341]
[1725419458805,3.9219,127.51,127.49,0.05458341]
[1725419458999,3.89916449,127.51,127.49,0.05458341]
[1725419459797,3.9764093,127.52,127.49,0.05458341]
[1725419460399,7.8838573,127.52,127.49,0.05458341]
[1725419460705,3.9621573,127.52,127.49,0.05458341]
[1725419461009,3.9621573,127.52,127.32,27.41036089]
[1725419461010,3.9232,127.47,127.42,3.9245]
[1725419461499,7.856,127.5,127.41,28.0249]
[1725419461901,0.05416669,127.47,127.44,0.05942905]
[1725419462305,3.9235,127.46,127.44,0.05942905]
[1725419462605,0.05416669,127.47,127.44,0.05942905]
[1725419463703,3.9236,127.45,127.44,0.05942905]
[1725419465303,3.9235,127.46,127.44,0.05942905]
[1725419465507,0.05416669,127.47,127.44,0.05942905]
[1725419466307,0.05416669,127.47,127.45,24.1]
[1725419467006,0.05416669,127.47,127.45,28.0235]
[1725419468609,0.05416669,127.47,127.45,24.1]
[1725419468907,0.05416669,127.47,127.46,3.9233]
[1725419469706,0.05416669,127.47,127.45,28.0235]
[1725419470508,0.05416669,127.47,127.45,24.1]
[1725419470814,0.05416669,127.47,127.44,0.05942905]
[1725419471208,3.9236,127.45,127.44,0.05942905]
[1725419472511,3.9236,127.45,127.39,1.5165]
[1725419472716,3.9236,127.45,127.35,1.5044]
[1725419472717,31.956,127.46,127.36,24.1]
[1725419473015,1.4116,127.44,127.36,28.0959265]
[1725419473708,0.0539876,127.41,127.39,0.05402252]
[1725419473918,3.9781028,127.41,127.39,0.05402252]
[1725419474118,0.0539876,127.41,127.39,0.05402252]
[1725419474618,3.90864596,127.41,127.39,0.05402252]
[1725419474820,0.0539876,127.41,127.39,0.05402252]
[1725419475319,7.9883561,127.41,127.39,0.05402252]
[1725419475618,3.9790876,127.41,127.39,0.05402252]
[1725419476013,7.82318026,127.41,127.39,0.05402252]
[1725419477422,3.9252,127.4,127.39,0.05402252]
[1725419477623,3.9252,127.4,127.3,2.8788]
[1725419477624,3.84801801,127.4,127.3,2.8788]
[1725419477827,24.1,127.39,127.3,2.8788]
[1725419478030,3.9267,127.35,127.3,30.9069]
[1725419478726,0.05564825,127.34,127.31,3.98775875]
[1725419478922,0.05564825,127.34,127.31,3.98523403]
[1725419479122,0.05564825,127.34,127.31,5.38203403]
[1725419479927,0.05564825,127.34,127.33,3.9273]
[1725419480926,11.7816,127.39,127.35,3.9267]
[1725419481130,7.856,127.39,127.35,3.9267]
[1725419481825,11.7815,127.39,127.35,3.9267]
[1725419482032,0.05926005,127.38,127.36,3.97631923]
[1725419482231,0.05926005,127.38,127.37,24.1]
[1725419482433,7.856,127.44,127.39,3.9252]
[1725419482726,3.9886997,127.44,127.39,24.1]
[1725419482932,3.9242,127.44,127.39,28.0252]
[1725419483328,7.856,127.47,127.39,24.1]
[1725419483532,0.05109345,127.44,127.42,0.05950242]
[1725419485939,0.05109345,127.44,127.42,3.98390242]
[1725419486234,0.05109345,127.44,127.42,0.05950242]
[1725419486442,0.05109345,127.44,127.42,3.98390242]
[1725419487432,0.05109345,127.44,127.43,3.9243]
[1725419488135,0.05109345,127.44,127.42,0.05950242]
[1725419490532,3.97509345,127.44,127.42,0.05950242]
[1725419490737,0.05109345,127.44,127.42,3.98390242]
[1725419490939,0.05109345,127.44,127.42,0.05950242]
[1725419491639,0.05109345,127.44,127.43,3.9243]
[1725419494938,0.05109345,127.44,127.42,3.98400242]
[1725419498343,0.05109345,127.44,127.43,3.9243]
[1725419503234,3.86423688,127.48,127.45,3.9235]
[1725419503443,7.856,127.51,127.41,30.13]
[1725419503643,3.9226,127.49,127.46,3.9232]
[1725419503838,4.01570164,127.48,127.41,30.13]
[1725419504041,7.856,127.51,127.41,30.13]
[1725419504243,0.05390828,127.47,127.45,0.05675501]
[1725419504940,0.05390828,127.47,127.45,3.98035501]
[1725419505348,0.05390828,127.47,127.46,3.9233]
[1725419505647,30.13,127.54,127.45,4.02145116]
[1725419505845,30.13,127.54,127.44,1.4841]
[1725419506039,3.922,127.51,127.48,3.9227]
[1725419506244,3.89995841,127.5,127.48,3.9227]
[1725419506442,3.9214,127.53,127.49,3.9222]
[1725419506645,0.0312921,127.52,127.5,0.05079513]
[1725419507345,0.0312921,127.52,127.5,30.18079513]
[1725419507649,3.9202,127.57,127.53,3.9209]
[1725419507852,7.75895182,127.57,127.53,3.9209]
[1725419508053,7.856,127.6,127.52,24.1]
[1725419508347,3.9197,127.58,127.54,3.9208]
[1725419508540,37.94710125,127.61,127.55,0.0508908]
[1725419508740,3.9197,127.58,127.55,0.0508908]
[1725419509546,3.9194,127.59,127.55,0.0508908]
[1725419509734,41.82618432,127.61,127.55,0.0508908]
[1725419510647,3.9201,127.57,127.55,0.0508908]
[1725419511240,14.76578432,127.61,127.55,0.0508908]
[1725419511848,3.9196,127.59,127.55,0.0508908]
[1725419512044,3.87908307,127.61,127.55,0.0508908]
[1725419512241,1.3968,127.64,127.55,0.0508908]
[1725419512438,3.9193,127.6,127.58,0.05196579]
[1725419512744,1.3968,127.64,127.58,0.05196579]
[1725419512943,3.9185,127.62,127.58,0.05196579]
[1725419513442,3.918,127.64,127.59,3.9192]
[1725419513638,3.918,127.64,127.6,0.05264751]
[1725419513841,3.918,127.64,127.6,3.92602101]
[1725419515041,7.78636852,127.65,127.6,7.84482101]
[1725419515243,24.1,127.73,127.63,24.1]
[1725419515548,2.8659,127.72,127.67,0.05291635]
[1725419515946,3.9166,127.68,127.67,0.05291635]
[1725419516450,7.91747837,127.68,127.67,0.05291635]
[1725419516745,3.9166,127.68,127.67,0.05291635]
[1725419516944,4.00754063,127.69,127.67,0.05291635]
[1725419517148,1.371,127.71,127.67,0.05291635]
[1725419517450,5.24411989,127.71,127.67,0.05291635]
[1725419517649,3.9166,127.68,127.67,0.05291635]
[1725419517852,7.77600349,127.68,127.67,0.05291635]
[1725419518245,3.9166,127.68,127.67,0.05291635]
[1725419518439,7.78899096,127.68,127.67,0.05291635]
[1725419518640,3.9166,127.68,127.67,0.05291635]
[1725419519043,7.76548868,127.68,127.67,0.05291635]
[1725419519245,3.9174,127.66,127.59,134.62518134]
[1725419519558,24.1,127.69,127.59,138.46075207]
[1725419519742,28.01391164,127.69,127.59,138.46075207]
[1725419520043,3.9171,127.67,127.61,28.0185]
[1725419520251,0.05291635,127.65,127.63,0.05965351]
[1725419520452,0.05291635,127.65,127.63,24.15965351]
[1725419520753,0.05291635,127.65,127.63,28.07765351]
[1725419521253,0.05291635,127.65,127.63,0.05965351]
[1725419521851,0.05291635,127.65,127.63,3.97755351]
[1725419522348,0.05291635,127.65,127.64,27.92929461]
[1725419522654,0.05291635,127.65,127.64,31.84709461]
[1725419523445,0.05291635,127.65,127.64,27.92929461]
[1725419523650,3.88923139,127.7,127.64,27.92929461]
[1725419523947,3.88923139,127.7,127.66,24.1]
[1725419524144,7.856,127.76,127.68,24.1]
[1725419524348,1.43964509,127.75,127.68,24.1]
[1725419524550,1.43964509,127.75,127.68,28.0166]
[1725419524551,3.9151,127.73,127.68,28.0166]
[1725419524755,2.9527,127.75,127.69,0.05584077]
[1725419525155,3.9157,127.71,127.69,0.05584077]
[1725419525347,7.8227,127.86,127.7,24.1]
[1725419525557,27.01227441,127.8,127.74,0.05191492]
[1725419525754,3.9144,127.75,127.74,0.05191492]
[1725419525957,24.1,127.79,127.74,0.05191492]
[1725419526156,1.43935917,127.78,127.74,0.05191492]
[1725419526357,3.9139,127.77,127.74,0.05191492]
[1725419527262,3.9143,127.76,127.74,0.05191492]
[1725419527760,24.1,127.79,127.74,0.05191492]
[1725419527963,1.43931145,127.78,127.74,0.05191492]
[1725419528562,24.1,127.79,127.74,0.05191492]
[1725419528858,1.43930576,127.78,127.74,0.05191492]
[1725419529858,3.914,127.77,127.74,0.05191492]
[1725419530053,25.573,127.8,127.74,0.05191492]
[1725419530360,1.43927435,127.79,127.74,0.05191492]
[1725419530562,3.9137,127.78,127.74,0.05191492]
[1725419530764,14.59395072,127.81,127.77,24.1]
[1725419530964,14.59395072,127.81,127.78,3.99736086]
[1725419531666,14.59395072,127.81,127.79,3.9132]
[1725419532161,10.7683894,127.81,127.78,0.05536658]